[Event "2. AUT Bundesliga 2020-21"]
[Site "Graz"]
[Date "2021.03.13"]
[Round "2.17"]
[White "Raber, Florian"]
[Black "Stradner, Stefan"]
[Result "1-0"]
[ECO "A57"]
[WhiteElo "2128"]
[BlackElo "2124"]
[Annotator "NA"]
[PlyCount "93"]
[EventDate "2021.01.17"]
[EventType "team-tourn"]
[EventCountry "AUT"]
[SourceTitle "playchess.com"]
[Source "ChessBase"]
[SourceQuality "1"]
[TimeControl "40/5400+30:1800+30"]

1. d4 {[%emt 0:00:00]} Nf6 {[%emt 0:00:00]} 2. c4 {[%emt 0:00:00]} c5 {[%emt 0:00:00]} 3. d5 {[%emt 0:00:00]} b5 {[%emt 0:00:29]} 4. cxb5 {[%emt 0:00:00]} a6 {[%emt 0:00:10]} 5. b6 {[%emt 0:00:00]} d6 {[%emt 0:01:30]} 6. Nc3 {[%emt 0:00:05]} Nbd7 {[%emt 0:00:08]} 7. e4 {[%emt 0:00:24]} Rb8 {[%emt 0:00:37]} 8. Nf3 {[%emt 0:03:58]} g6 {[%emt 0:03:04]} 9. Be2 {[%emt 0:00:07]} Bg7 {[%emt 0:00:43]} 10. O-O {[%emt 0:01:29]} Rxb6 {[%emt 0:00:51]} 11. Nd2 {[%emt 0:02:04]} O-O {[%emt 0:15:34]} 12. a4 {[%emt 0:00:08]} Rb4 {[%emt 0:06:09]} 13. a5 {[%emt 0:02:53]} e6 {[%emt 0:22:04]} 14. dxe6 {[%emt 0:20:23]} fxe6 {[%emt 0:00:19]} 15. Nc4 {[%emt 0:00:35]} Ne5 {[%emt 0:16:06]} (15... Ne8 $1 $14) 16. Nxe5 {[%emt 0:21:03]} ({Wrong is} 16. Nxd6 $2 Rd4 $19 {[%mdl 64] Double Attack}) 16... dxe5 {[%emt 0:00:25]} 17. Qc2 {[%emt 0:01:12]} Bb7 {[%emt 0:04:26]} 18. f3 $18 {[%emt 0:09:47]} Qc7 {[%emt 0:06:44]} 19. Be3 {[%emt 0:00:37]} Rb8 {[%emt 0:02:01]} 20. Na2 {[%emt 0:06:02]} Bxe4 {[%emt 0:03:23]} 21. fxe4 {[%emt 0:11:08]} Rxb2 {[%emt 0:00:09]} 22. Qc4 {[%emt 0:00:11]} Nxe4 {[%emt 0:02:38]} 23. Qxe4 {[%emt 0:07:00]} Rxe2 {[%emt 0:00:06]} 24. Nc3 {[%emt 0:00:52]} Reb2 {[%emt 0:01:22]} 25. Rab1 {[%emt 0:03:17]} Rxb1 {[%emt 0:00:55]} 26. Rxb1 {[%emt 0:00:13]} Rxb1+ {[%emt 0:00:20]} 27. Qxb1 {[%emt 0:01:15]} Qxa5 {[%emt 0:00:21]} 28. Qb8+ {[%emt 0:00:23]} Kf7 {[%emt 0:00:05]} 29. Qa7+ {[%emt 0:01:06]} Kg8 {[%emt 0:01:16]} 30. Qb8+ {[%emt 0:00:20]} Kf7 {[%emt 0:00:10]} 31. Qa7+ {[%emt 0:00:01]} Kg8 {[%emt 0:00:06]} 32. Qxc5 {[%emt 0:00:10]} Qa1+ {[%emt 0:05:36]} 33. Kf2 {[%emt 0:00:02]} Qb2+ {[%emt 0:00:06]} 34. Kf3 {[%emt 0:00:51]} Qb7+ {[%emt 0:00:28]} 35. Ne4 {[%emt 0:00:51]} Qf7+ {[%emt 0:01:16]} 36. Ke2 {[%emt 0:00:11]} Qf5 {[%emt 0:00:33]} 37. Qc8+ {[%emt 0:03:01]} Bf8 {[%emt 0:00:06]} 38. Ng5 {[%emt 0:03:24]} Qg4+ {[%emt 0:00:15]} 39. Kf2 {[%emt 0:00:13]} Qf5+ {[%emt 0:00:26]} 40. Kg3 {[%emt 0:00:00]} a5 {[%emt 0:00:00]} 41. Nxe6 {[%emt 0:15:03]} h5 {[%emt 0:03:25]} 42. Qxf8+ {[%emt 0:00:16]} Qxf8 {[%emt 0:00:07]} 43. Nxf8 {[%emt 0:00:04]} Kxf8 {[%emt 0:00:11]} 44. Kf3 {[%emt 0:00:14]} Kf7 {[%emt 0:00:12]} 45. Ke4 {[%emt 0:00:10]} Ke6 {[%emt 0:00:09]} 46. Bd2 {[%emt 0:00:12]} a4 {[%emt 0:00:06]} 47. Bc3 {[%emt 0:00:10]} 1-0

[Event "2. AUT Bundesliga 2020-21"]
[Site "Graz"]
[Date "2021.03.13"]
[Round "2.18"]
[White "Eibinger, Manuel"]
[Black "Ring, Rudolf"]
[Result "1/2-1/2"]
[ECO "A20"]
[WhiteElo "2019"]
[BlackElo "1737"]
[Annotator "NA"]
[PlyCount "64"]
[EventDate "2021.01.17"]
[EventType "team-tourn"]
[EventCountry "AUT"]
[SourceTitle "playchess.com"]
[Source "ChessBase"]
[SourceQuality "1"]
[TimeControl "40/5400+30:1800+30"]

1. c4 {[%emt 0:00:00]} e5 {[%emt 0:00:00]} 2. g3 {[%emt 0:00:00]} Nf6 {[%emt 0:02:36]} 3. Bg2 {[%emt 0:00:00]} c6 {[%emt 0:00:22]} 4. Nc3 {[%emt 0:01:35]} Be7 {[%emt 0:08:22]} 5. d4 {[%emt 0:03:29]} exd4 {[%emt 0:00:18]} 6. Qxd4 {[%emt 0:00:09]} Qb6 {[%emt 0:02:22]} 7. Qxb6 {[%emt 0:02:51]} axb6 {[%emt 0:00:11]} 8. Be3 {[%emt 0:00:46]} Bc5 {[%emt 0:01:23]} 9. Bd2 {[%emt 0:02:21]} Ng4 {[%emt 0:03:31]} 10. Ne4 {[%emt 0:09:26]} Na6 {[%emt 0:07:11]} 11. Rc1 {[%emt 0:09:36]} f6 {[%emt 0:07:33]} 12. a3 {[%emt 0:06:38]} f5 {[%emt 0:05:01]} 13. Nxc5 {[%emt 0:00:20]} Nxc5 {[%emt 0:00:17]} 14. Bc3 {[%emt 0:00:37]} O-O {[%emt 0:02:12]} 15. Nh3 {[%emt 0:03:11]} Re8 {[%emt 0:04:12]} 16. Rd1 {[%emt 0:05:40]} Ne4 {[%emt 0:03:35]} 17. Bxe4 {[%emt 0:01:20]} fxe4 {[%emt 0:00:26]} 18. O-O {[%emt 0:03:38]} Ra4 {[%emt 0:00:31]} 19. Rd4 {[%emt 0:00:13]} c5 {[%emt 0:01:00]} ({Better is} 19... Nh6 $14) 20. Rd6 {[%emt 0:00:18]} Rxc4 {[%emt 0:01:16]} 21. Nf4 $16 {[%emt 0:03:29]} Nf6 {[%emt 0:25:50]} 22. Bxf6 {[%emt 0:02:23]} gxf6 {[%emt 0:00:02]} 23. Nd5 {[%emt 0:03:43]} Kg7 {[%emt 0:02:03]} 24. Nxb6 {[%emt 0:08:28]} Rc2 {[%emt 0:00:13]} 25. Nxc8 {[%emt 0:00:19]} Rxc8 {[%emt 0:00:20]} 26. Rxd7+ {[%emt 0:00:06]} Kg6 {[%emt 0:00:09]} 27. Rxb7 {[%emt 0:00:06]} Rxe2 {[%emt 0:00:12]} 28. Rc1 {[%emt 0:00:09]} Rd8 {[%emt 0:00:47]} 29. Rb3 {[%emt 0:12:41]} Rdd2 {[%emt 0:00:44]} 30. Rxc5 {[%emt 0:04:01]} Re1+ 31. Kg2 e3 32. Kf3 exf2 1/2-1/2

[Event "2. AUT Bundesliga 2020-21"]
[Site "Graz"]
[Date "2021.03.14"]
[Round "3.10"]
[White "Wiesinger, Robert"]
[Black "Druska, Juraj"]
[Result "1/2-1/2"]
[ECO "B76"]
[WhiteElo "2239"]
[BlackElo "2495"]
[Annotator "RC"]
[PlyCount "40"]
[EventDate "2021.01.17"]
[EventType "team-tourn"]
[EventCountry "AUT"]
[SourceTitle "playchess.com"]
[Source "ChessBase"]
[SourceQuality "1"]
[TimeControl "40/5400+30:1800+30"]

1. e4 {[%emt 0:00:00]} c5 {[%emt 0:00:00]} 2. Nf3 {[%emt 0:00:00]} d6 {[%emt 0:00:10]} 3. d4 {[%emt 0:00:03]} cxd4 {[%emt 0:00:11]} 4. Nxd4 {[%emt 0:00:09]} Nf6 {[%emt 0:00:05]} 5. Nc3 {[%emt 0:00:13]} g6 {[%emt 0:00:34]} 6. Be3 {[%emt 0:01:06]} Bg7 {[%emt 0:00:10]} 7. f3 {[%emt 0:00:48]} O-O {[%emt 0:00:25]} 8. Qd2 {[%emt 0:00:18]} Nc6 {[%emt 0:00:05]} 9. O-O-O {[%emt 0:00:25]} d5 {[%emt 0:00:34]} 10. Qe1 {[%emt 0:00:34]} e5 {[%emt 0:00:45]} 11. Nxc6 {[%emt 0:00:21]} bxc6 {[%emt 0:00:03]} 12. exd5 {[%emt 0:00:37]} Nxd5 {[%emt 0:03:56]} 13. Bc4 {[%emt 0:01:39]} Be6 {[%emt 0:02:20]} 14. Ne4 {[%emt 0:01:12]} Qc7 {[%emt 0:06:05]} 15. Bc5 {[%emt 0:01:17]} Rfe8 {[%emt 0:03:15]} 16. g4 {[%emt 0:38:38]} Nf4 {[%emt 0:01:03]} 17. Bd6 {[%emt 0:08:20]} Qb6 {[%emt 0:03:02]} 18. Bc5 {[%emt 0:00:58]} Qc7 {[%emt 0:01:00]} 19. Bd6 {[%emt 0:00:13]} Qb6 {[%emt 0:19:50]} 20. Bc5 {[%emt 0:00:11]} Qc7 {[%emt 0:00:04]} 1/2-1/2

[Event "2. AUT Bundesliga 2020-21"]
[Site "Graz"]
[Date "2021.04.10"]
[Round "4.1"]
[White "Dietmayer-Kraeutler, Marco"]
[Black "Frank, Emanuel"]
[Result "1-0"]
[ECO "D31"]
[WhiteElo "2284"]
[BlackElo "2242"]
[Annotator "NA"]
[PlyCount "99"]
[EventDate "2021.01.17"]
[EventType "team-tourn"]
[EventCountry "AUT"]
[SourceTitle "playchess.com"]
[Source "ChessBase"]
[SourceQuality "1"]
[TimeControl "40/5400+30:1800+30"]

1. d4 {[%emt 0:00:00]} d5 {[%emt 0:00:00]} 2. c4 {[%emt 0:00:00]} e6 {[%emt 0:00:00]} 3. Nc3 {[%emt 0:00:00]} a6 {[%emt 0:00:00]} 4. cxd5 {[%emt 0:01:40]} exd5 {[%emt 0:00:21]} 5. Nf3 {[%emt 0:00:05]} Nf6 {[%emt 0:00:10]} 6. Bg5 {[%emt 0:00:07]} Be6 {[%emt 0:00:04]} 7. e3 {[%emt 0:06:21]} Nbd7 {[%emt 0:00:19]} 8. Bd3 {[%emt 0:01:07]} h6 {[%emt 0:00:11]} 9. Bh4 {[%emt 0:00:05]} g5 {[%emt 0:00:08]} 10. Bg3 {[%emt 0:00:08]} Nh5 {[%emt 0:00:05]} 11. Be5 {[%emt 0:01:15]} Nhf6 {[%emt 0:00:22]} 12. Bg3 {[%emt 0:03:28]} Nh5 {[%emt 0:00:14]} 13. Be5 {[%emt 0:00:05]} Nhf6 {[%emt 0:00:05]} 14. Qb3 {[%emt 0:04:45]} g4 {[%emt 0:02:17]} 15. Bxf6 {[%emt 0:04:35]} Qxf6 {[%emt 0:01:41]} 16. Ne5 {[%emt 0:04:50]} Nxe5 {[%emt 0:14:13]} 17. dxe5 {[%emt 0:02:00]} Qxe5 {[%emt 0:04:44]} 18. Qxb7 {[%emt 0:01:54]} Rd8 {[%emt 0:02:56]} 19. Bxa6 {[%emt 0:01:37]} Bd6 {[%emt 0:12:40]} 20. Qc6+ {[%emt 0:08:33]} Kf8 {[%emt 0:11:18]} 21. Rd1 $11 {[%emt 0:03:23]} Rb8 {[%emt 0:12:42]} 22. Bb7 {[%emt 0:00:35]} Kg7 {[%emt 0:02:20]} 23. Rd4 {[%emt 0:07:40]} Rhd8 {[%emt 0:05:37]} 24. g3 {[%emt 0:11:21]} Be7 {[%emt 0:08:40]} 25. O-O {[%emt 0:06:16]} Bf6 {[%emt 0:10:56]} 26. Rb4 {[%emt 0:12:51]} Qd6 {[%emt 0:04:54]} 27. Rb5 {[%emt 0:05:07]} Qe5 {[%emt 0:04:16]} 28. Qa6 {[%emt 0:03:10]} Rd6 {[%emt 0:01:01]} 29. Qa7 {[%emt 0:00:46]} Rbd8 {[%emt 0:00:43]} 30. Rd1 {[%emt 0:00:37]} c6 {[%emt 0:00:52]} 31. Rc5 {[%emt 0:01:00]} Bd7 {[%emt 0:00:52]} 32. Qa4 {[%emt 0:01:52]} Qe6 {[%emt 0:00:34]} 33. Ne2 {[%emt 0:01:36]} Bxb2 {[%emt 0:00:40]} 34. Nd4 {[%emt 0:00:19]} Bxd4 {[%emt 0:00:30]} 35. Qxd4+ {[%emt 0:00:02]} f6 {[%emt 0:00:30]} 36. e4 {[%emt 0:01:57]} Qe5 {[%emt 0:00:32]} 37. exd5 {[%emt 0:01:30]} Qxd4 38. Rxd4 {[%emt 0:00:03]} Rb8 {[%emt 0:00:53]} 39. Bxc6 {[%emt 0:00:17]} Rc8 {[%emt 0:00:32]} 40. Rdc4 {[%emt 0:00:00]} Bf5 {[%emt 0:00:00]} 41. a4 {[%emt 0:04:43]} Rb8 {[%emt 0:01:36]} 42. Rb5 {[%emt 0:00:48]} Rc8 {[%emt 0:00:49]} 43. a5 {[%emt 0:03:05]} h5 {[%emt 0:00:30]} 44. a6 {[%emt 0:02:16]} Bd3 {[%emt 0:01:21]} 45. Rcc5 {[%emt 0:04:39]} Bxb5 {[%emt 0:09:37]} 46. Rxb5 {[%emt 0:00:12]} Rc7 {[%emt 0:04:35]} 47. Rb7 {[%emt 0:00:41]} Rxb7 {[%emt 0:00:29]} 48. Bxb7 {[%emt 0:00:07]} Rb6 {[%emt 0:00:30]} 49. a7 {[%emt 0:00:08]} h4 {[%emt 0:00:14]} 50. gxh4 {[%emt 0:00:24]} 1-0

[Event "2. AUT Bundesliga 2020-21"]
[Site "Graz"]
[Date "2021.04.10"]
[Round "4.2"]
[White "Riemelmoser, Franz"]
[Black "Ragger, Anna-Christina"]
[Result "1-0"]
[ECO "A11"]
[WhiteElo "2235"]
[BlackElo "2198"]
[Annotator "NA"]
[PlyCount "85"]
[EventDate "2021.01.17"]
[EventType "team-tourn"]
[EventCountry "AUT"]
[SourceTitle "playchess.com"]
[Source "ChessBase"]
[SourceQuality "1"]
[TimeControl "40/5400+30:1800+30"]

1. c4 {[%emt 0:00:03]} c6 {[%emt 0:00:00]} 2. Nf3 {[%emt 0:00:10]} d5 {[%emt 0:00:00]} 3. e3 {[%emt 0:00:10]} Nf6 {[%emt 0:01:08]} 4. Nc3 {[%emt 0:00:29]} a6 {[%emt 0:04:41]} 5. b3 {[%emt 0:13:00]} h6 $14 {[%emt 0:02:35]} 6. Bb2 {[%emt 0:00:20]} Bf5 {[%emt 0:00:19]} 7. Rc1 {[%emt 0:01:35]} e6 {[%emt 0:00:42]} 8. Be2 {[%emt 0:02:05]} Bd6 {[%emt 0:01:40]} 9. d4 {[%emt 0:00:50]} O-O {[%emt 0:01:48]} 10. h3 {[%emt 0:00:24]} Nbd7 {[%emt 0:02:03]} 11. O-O {[%emt 0:01:02]} Qe7 {[%emt 0:03:05]} 12. Bd3 {[%emt 0:03:15]} Ne4 {[%emt 0:09:19]} 13. Qc2 {[%emt 0:00:25]} Nxc3 {[%emt 0:03:41]} 14. Bxc3 {[%emt 0:01:09]} Bxd3 {[%emt 0:00:45]} 15. Qxd3 {[%emt 0:00:10]} f5 {[%emt 0:01:29]} 16. Rc2 {[%emt 0:01:58]} Qf6 {[%emt 0:08:00]} 17. b4 {[%emt 0:07:09]} b5 {[%emt 0:06:46]} 18. c5 {[%emt 0:02:04]} Bc7 {[%emt 0:00:10]} 19. a4 {[%emt 0:00:07]} Kh8 {[%emt 0:10:25]} 20. Ra2 {[%emt 0:02:44]} g5 {[%emt 0:00:14]} 21. axb5 {[%emt 0:07:53]} axb5 {[%emt 0:06:05]} 22. Rxa8 {[%emt 0:17:29]} Rxa8 {[%emt 0:00:24]} 23. Ra1 {[%emt 0:00:11]} Rxa1+ {[%emt 0:04:14]} 24. Bxa1 {[%emt 0:00:07]} g4 {[%emt 0:01:28]} 25. hxg4 {[%emt 0:01:22]} fxg4 {[%emt 0:00:05]} 26. Ne5 {[%emt 0:01:02]} Nxe5 {[%emt 0:07:57]} 27. dxe5 {[%emt 0:00:13]} Bxe5 {[%emt 0:01:41]} 28. Bxe5 {[%emt 0:00:11]} Qxe5 {[%emt 0:00:02]} 29. Qg6 {[%emt 0:00:12]} h5 {[%emt 0:07:09]} 30. Qe8+ {[%emt 0:01:03]} Kg7 {[%emt 0:02:36]} 31. Qxc6 {[%emt 0:02:41]} Qa1+ {[%emt 0:05:23]} 32. Kh2 {[%emt 0:00:11]} Qe5+ {[%emt 0:00:04]} 33. g3 {[%emt 0:12:32]} Qf5 {[%emt 0:04:51]} 34. Qc7+ {[%emt 0:01:18]} Kg6 {[%emt 0:00:20]} 35. Qf4 {[%emt 0:00:43]} Qc2 {[%emt 0:00:50]} 36. Kg2 {[%emt 0:00:28]} Qc3 {[%emt 0:00:27]} 37. Qd4 {[%emt 0:00:56]} Qc2 {[%emt 0:00:37]} 38. Qe5 {[%emt 0:00:38]} Qc4 {[%emt 0:01:13]} 39. Qxe6+ {[%emt 0:00:24]} Kg5 {[%emt 0:00:27]} 40. c6 {[%emt 0:00:00]} h4 {[%emt 0:00:00]} 41. gxh4+ {[%emt 0:02:00]} Kh5 {[%emt 0:02:01]} 42. Qe5+ {[%emt 0:00:37]} Kg6 {[%emt 0:01:48]} 43. c7 {[%emt 0:00:23]} 1-0

[Event "2. AUT Bundesliga 2020-21"]
[Site "Graz"]
[Date "2021.04.10"]
[Round "4.4"]
[White "Heindl, Matthias"]
[Black "Guetz, Wolfgang"]
[Result "1-0"]
[ECO "A20"]
[WhiteElo "2200"]
[BlackElo "2061"]
[Annotator "NA"]
[PlyCount "119"]
[EventDate "2021.01.17"]
[EventType "team-tourn"]
[EventCountry "AUT"]
[SourceTitle "playchess.com"]
[Source "ChessBase"]
[SourceQuality "1"]
[TimeControl "40/5400+30:1800+30"]

1. c4 {[%emt 0:00:00]} e5 {[%emt 0:00:00]} 2. g3 {[%emt 0:00:00]} Nf6 {[%emt 0:00:00]} 3. Bg2 {[%emt 0:00:00]} d5 {[%emt 0:01:26]} 4. cxd5 {[%emt 0:00:00]} Nxd5 {[%emt 0:00:06]} 5. Nc3 {[%emt 0:00:00]} Nb6 {[%emt 0:00:27]} 6. d3 {[%emt 0:00:13]} Nc6 {[%emt 0:01:18]} 7. Be3 {[%emt 0:07:56]} Be7 {[%emt 0:04:42]} 8. Bxc6+ {[%emt 0:10:03]} bxc6 {[%emt 0:00:10]} 9. Nf3 {[%emt 0:00:03]} Qd6 {[%emt 0:08:57]} 10. O-O {[%emt 0:05:45]} O-O {[%emt 0:03:33]} 11. Rc1 {[%emt 0:11:31]} f5 {[%emt 0:11:58]} 12. Na4 {[%emt 0:11:32]} Nd5 {[%emt 0:11:15]} 13. Bc5 {[%emt 0:03:26]} Qf6 {[%emt 0:04:34]} 14. Bxe7 {[%emt 0:03:32]} Nxe7 {[%emt 0:00:28]} 15. Nc5 {[%emt 0:01:40]} Rb8 {[%emt 0:05:57]} 16. Qc2 {[%emt 0:03:45]} g5 {[%emt 0:05:44]} 17. Qc4+ {[%emt 0:14:24]} Kg7 {[%emt 0:04:03]} 18. Qc3 {[%emt 0:02:45]} Ng6 {[%emt 0:02:42]} 19. b3 {[%emt 0:00:58]} h5 {[%emt 0:06:58]} 20. Qa5 {[%emt 0:03:07]} Rf7 {[%emt 0:08:36]} 21. Qxa7 {[%emt 0:00:22]} Rb6 {[%emt 0:01:33]} 22. Qa8 {[%emt 0:00:18]} Ne7 {[%emt 0:01:59]} 23. a4 {[%emt 0:03:38]} h4 {[%emt 0:01:32]} 24. a5 {[%emt 0:01:06]} Rb4 {[%emt 0:00:36]} 25. a6 {[%emt 0:04:36]} hxg3 {[%emt 0:04:44]} 26. hxg3 {[%emt 0:01:21]} Rf8 {[%emt 0:01:07]} 27. a7 {[%emt 0:04:49]} Rh8 {[%emt 0:05:55]} 28. Kg2 {[%emt 0:00:45]} f4 {[%emt 0:00:06]} 29. g4 {[%emt 0:00:20]} Rf8 {[%emt 0:02:47]} 30. Qb8 {[%emt 0:01:06]} Rxb8 {[%emt 0:00:44]} 31. axb8=Q {[%emt 0:00:10]} Bxg4 {[%emt 0:00:13]} 32. Qxc7 {[%emt 0:00:59]} Bh3+ {[%emt 0:00:49]} 33. Kg1 {[%emt 0:02:43]} Bxf1 {[%emt 0:00:11]} 34. Kxf1 {[%emt 0:00:37]} g4 {[%emt 0:00:17]} 35. Nd7 {[%emt 0:01:28]} Qh6 {[%emt 0:00:58]} 36. Qxe5+ {[%emt 0:00:26]} Kf7 {[%emt 0:00:33]} 37. Ng1 {[%emt 0:02:07]} Rd8 {[%emt 0:00:36]} 38. Nc5 {[%emt 0:00:37]} Rd5 {[%emt 0:00:28]} 39. Qe4 {[%emt 0:00:22]} g3 {[%emt 0:00:26]} 40. Rc4 {[%emt 0:00:00]} Rf5 {[%emt 0:00:00]} 41. Nb7 {[%emt 0:22:33]} Rf6 {[%emt 0:07:05]} 42. Qg2 {[%emt 0:05:15]} Nd5 {[%emt 0:06:32]} 43. Nf3 {[%emt 0:01:20]} gxf2 {[%emt 0:02:30]} 44. Kxf2 {[%emt 0:00:44]} Ne3 {[%emt 0:00:59]} 45. Qg5 {[%emt 0:01:19]} Nxc4 {[%emt 0:04:12]} 46. Qxh6 {[%emt 0:00:06]} Rxh6 {[%emt 0:00:04]} 47. bxc4 {[%emt 0:00:12]} Ke6 {[%emt 0:01:49]} 48. Ke1 {[%emt 0:00:57]} Kf5 {[%emt 0:00:53]} 49. Kd2 {[%emt 0:00:30]} Kg4 {[%emt 0:01:31]} 50. d4 {[%emt 0:01:11]} Kf5 {[%emt 0:00:59]} 51. Kd3 {[%emt 0:00:06]} Rh3 {[%emt 0:06:08]} 52. c5 {[%emt 0:00:13]} Rg3 {[%emt 0:00:51]} 53. Nd6+ {[%emt 0:01:07]} Ke6 {[%emt 0:00:23]} 54. Ne4 {[%emt 0:00:16]} Rg2 {[%emt 0:00:57]} 55. Ne5 {[%emt 0:00:41]} Rh2 {[%emt 0:02:22]} 56. Nc3 {[%emt 0:00:38]} Rh3+ {[%emt 0:00:44]} 57. Kc4 {[%emt 0:00:10]} Re3 {[%emt 0:01:03]} 58. Nxc6 {[%emt 0:00:18]} f3 {[%emt 0:00:23]} 59. exf3 {[%emt 0:00:21]} Rxf3 {[%emt 0:00:05]} 60. d5+ {[%emt 0:00:08]} 1-0

[Event "2. AUT Bundesliga 2020-21"]
[Site "Graz"]
[Date "2021.04.10"]
[Round "4.5"]
[White "Kobas, Mihael"]
[Black "Hafner, Robert"]
[Result "1-0"]
[ECO "D11"]
[WhiteElo "2030"]
[BlackElo "2006"]
[Annotator "NA RC"]
[PlyCount "107"]
[EventDate "2021.01.17"]
[EventType "team-tourn"]
[EventCountry "AUT"]
[SourceTitle "playchess.com"]
[Source "ChessBase"]
[SourceQuality "1"]
[TimeControl "40/5400+30:1800+30"]

1. d4 {[%emt 0:00:00]} d5 {[%emt 0:00:00]} 2. c4 {[%emt 0:00:00]} c6 {[%emt 0:00:00]} 3. Nf3 {[%emt 0:00:17]} Nf6 {[%emt 0:00:00]} 4. Qb3 {[%emt 0:01:17]} e6 {[%emt 0:07:09]} 5. g3 {[%emt 0:02:11]} Be7 {[%emt 0:03:03]} 6. Bg2 {[%emt 0:00:14]} O-O {[%emt 0:00:05]} 7. O-O {[%emt 0:00:11]} b6 {[%emt 0:00:22]} 8. Nc3 {[%emt 0:04:36]} Bb7 {[%emt 0:01:47]} 9. Rd1 {[%emt 0:01:25]} Nbd7 {[%emt 0:00:45]} 10. cxd5 {[%emt 0:05:07]} cxd5 {[%emt 0:00:13]} 11. Bf4 {[%emt 0:01:00]} a6 {[%emt 0:02:50]} 12. a4 {[%emt 0:08:22]} Rc8 {[%emt 0:01:25]} 13. Rac1 {[%emt 0:04:05]} Re8 {[%emt 0:03:30]} 14. Rc2 {[%emt 0:09:21]} Bf8 {[%emt 0:00:35]} 15. Rdc1 {[%emt 0:04:26]} Qe7 {[%emt 0:02:09]} 16. Na2 {[%emt 0:03:57]} Rxc2 {[%emt 0:29:25]} 17. Rxc2 {[%emt 0:00:35]} Rc8 {[%emt 0:01:19]} 18. Rxc8 {[%emt 0:03:32]} Bxc8 {[%emt 0:00:04]} 19. Bc7 {[%emt 0:05:08]} Ne4 {[%emt 0:06:23]} 20. Bxb6 {[%emt 0:01:50]} g5 {[%emt 0:02:16]} 21. Ba5 {[%emt 0:02:11]} g4 {[%emt 0:05:02]} 22. Nd2 {[%emt 0:04:43]} f5 {[%emt 0:03:51]} 23. Nxe4 {[%emt 0:03:35]} fxe4 {[%emt 0:00:34]} 24. Bb4 {[%emt 0:01:56]} Qe8 {[%emt 0:10:17]} 25. Bxf8 {[%emt 0:00:35]} Nxf8 {[%emt 0:00:03]} 26. Nc3 {[%emt 0:02:49]} Bd7 {[%emt 0:00:43]} 27. e3 {[%emt 0:06:41]} Bc6 {[%emt 0:03:00]} 28. Bf1 {[%emt 0:01:29]} Qa8 {[%emt 0:00:25]} 29. Qb6 {[%emt 0:03:51]} Bb7 {[%emt 0:00:51]} 30. Qd6 {[%emt 0:02:23]} Bc8 {[%emt 0:01:34]} 31. Qb6 {[%emt 0:04:01]} Ng6 {[%emt 0:03:33]} 32. a5 {[%emt 0:01:32]} Ne7 {[%emt 0:02:19]} 33. Na4 {[%emt 0:06:07]} Kf7 {[%emt 0:07:19]} 34. Nc5 {[%emt 0:00:36]} Qc6 {[%emt 0:00:23]} 35. Bxa6 {[%emt 0:02:44]} Bxa6 {[%emt 0:02:57]} 36. Qxc6 {[%emt 0:04:05]} Nxc6 {[%emt 0:00:10]} 37. Nxa6 {[%emt 0:00:06]} Nxa5 {[%emt 0:00:12]} 38. Kf1 {[%emt 0:01:18]} Ke7 {[%emt 0:00:57]} 39. Ke2 {[%emt 0:00:22]} Nc6 {[%emt 0:01:21]} 40. Kd2 {[%emt 0:00:00]} Kd6 {[%emt 0:00:00]} 41. Kc3 {[%emt 0:04:24]} e5 {[%emt 0:00:50]} 42. b4 {[%emt 0:00:31]} exd4+ {[%emt 0:00:21]} 43. exd4 {[%emt 0:00:09]} Ne7 {[%emt 0:05:04]} 44. b5 {[%emt 0:02:01]} Nf5 {[%emt 0:00:35]} 45. Nb4 {[%emt 0:02:19]} Ne7 {[%emt 0:01:12]} 46. Nc2 {[%emt 0:08:07]} h5 {[%emt 0:12:21]} 47. Ne3 {[%emt 0:00:25]} Nc8 {[%emt 0:03:29]} 48. Kb4 {[%emt 0:03:02]} Nb6 {[%emt 0:01:23]} 49. Ka5 {[%emt 0:05:48]} Kc7 {[%emt 0:00:06]} 50. Ka6 {[%emt 0:01:05]} Nc4 {[%emt 0:01:43]} 51. Nxd5+ {[%emt 0:00:29]} Kb8 {[%emt 0:00:03]} 52. Nf6 {[%emt 0:00:55]} e3 {[%emt 0:00:23]} 53. fxe3 {[%emt 0:00:13]} Nxe3 {[%emt 0:00:06]} 54. b6 {[%emt 0:01:31]} 1-0

[Event "2. AUT Bundesliga 2020-21"]
[Site "Graz"]
[Date "2021.04.10"]
[Round "4.6"]
[White "Bresch, Manfred"]
[Black "Hiebler, Laura"]
[Result "1-0"]
[ECO "C01"]
[WhiteElo "2008"]
[BlackElo "2025"]
[Annotator "NA"]
[PlyCount "81"]
[EventDate "2021.01.17"]
[EventType "team-tourn"]
[EventCountry "AUT"]
[SourceTitle "playchess.com"]
[Source "ChessBase"]
[SourceQuality "1"]
[TimeControl "40/5400+30:1800+30"]

1. e4 {[%emt 0:00:00]} e6 {[%emt 0:00:00]} 2. d4 {[%emt 0:00:00]} d5 {[%emt 0:00:00]} 3. exd5 {[%emt 0:00:00]} exd5 {[%emt 0:00:00]} 4. Nf3 Nf6 5. Bd3 {[%emt 0:01:27]} Be7 {[%emt 0:00:48]} 6. O-O {[%emt 0:00:35]} O-O {[%emt 0:00:07]} 7. Bg5 {[%emt 0:01:42]} Nc6 {[%emt 0:02:30]} 8. c3 {[%emt 0:02:25]} Bg4 {[%emt 0:01:48]} 9. Nbd2 {[%emt 0:01:28]} h6 {[%emt 0:02:56]} 10. Bf4 {[%emt 0:04:53]} Bd6 {[%emt 0:12:31]} 11. Bxd6 {[%emt 0:01:22]} Qxd6 {[%emt 0:00:08]} 12. Qc2 {[%emt 0:01:55]} Rae8 {[%emt 0:05:01]} 13. Rae1 {[%emt 0:01:38]} Qf4 {[%emt 0:07:44]} 14. h3 {[%emt 0:09:02]} Bxf3 {[%emt 0:12:58]} 15. Nxf3 {[%emt 0:00:20]} Ne4 {[%emt 0:00:58]} 16. Qb3 {[%emt 0:14:51]} Qd6 {[%emt 0:10:12]} 17. Re2 {[%emt 0:03:47]} b6 {[%emt 0:03:13]} 18. Rfe1 {[%emt 0:01:06]} Nf6 {[%emt 0:10:07]} 19. Ne5 {[%emt 0:03:14]} Na5 {[%emt 0:09:49]} 20. Qa4 {[%emt 0:03:48]} Re6 {[%emt 0:02:30]} 21. b4 {[%emt 0:02:47]} Nc6 {[%emt 0:03:51]} 22. Bf5 {[%emt 0:00:59]} Ne7 {[%emt 0:01:50]} 23. Bxe6 {[%emt 0:00:17]} fxe6 {[%emt 0:00:12]} 24. Qxa7 {[%emt 0:07:46]} Ne4 {[%emt 0:00:37]} 25. Qa3 {[%emt 0:01:08]} Nc6 {[%emt 0:01:38]} 26. f3 {[%emt 0:04:31]} Ng3 {[%emt 0:00:41]} 27. Rf2 {[%emt 0:03:26]} Ne7 {[%emt 0:01:25]} 28. Qa4 {[%emt 0:02:15]} Rd8 {[%emt 0:02:25]} 29. Qc2 {[%emt 0:02:00]} Nef5 {[%emt 0:01:02]} 30. Ng4 {[%emt 0:01:13]} Rf8 {[%emt 0:01:37]} 31. Ne3 {[%emt 0:02:31]} Nh4 {[%emt 0:00:48]} 32. Nf1 {[%emt 0:01:21]} Nh5 {[%emt 0:00:24]} 33. Qd1 {[%emt 0:08:49]} Nf4 {[%emt 0:01:09]} 34. Ne3 {[%emt 0:02:08]} Qe7 {[%emt 0:02:06]} 35. Kh2 {[%emt 0:01:12]} Qg5 {[%emt 0:00:16]} 36. g3 {[%emt 0:01:23]} Nh5 {[%emt 0:00:59]} 37. Nf1 {[%emt 0:01:00]} Nf5 {[%emt 0:01:38]} 38. f4 {[%emt 0:00:17]} Qg6 {[%emt 0:00:07]} 39. g4 {[%emt 0:00:28]} Nh4 {[%emt 0:01:37]} 40. gxh5 {[%emt 0:00:00]} Qf5 {[%emt 0:00:00]} 41. Qg4 {[%emt 0:02:16]} 1-0